[Event "*** Titled Tuesday Blitz"]
[Site "Chess.com"]
[Date "2020.11.10"]
[Round "8"]
[White "ExtremeLearner"]
[Black "Natalya_Buksa"]
[Result "0-1"]
[WhiteElo "2403"]
[BlackElo "2574"]
[TimeControl "180+1"]
[EndTime "11:33:05 PST"]
[Termination "Natalya_Buksa won by resignation"]

1. d4 {[%clk 0:03:00.9]} 1... d5 {[%clk 0:02:59.9]} 2. Nf3 {[%clk 0:03:01.2]}
2... e6 {[%clk 0:03:00]} 3. g3 {[%clk 0:02:57]} 3... Nf6 {[%clk 0:02:59.7]} 4.
Bg2 {[%clk 0:02:57.3]} 4... Be7 {[%clk 0:03:00.3]} 5. O-O {[%clk 0:02:57.9]}
5... O-O {[%clk 0:03:00.9]} 6. c4 {[%clk 0:02:58.5]} 6... dxc4 {[%clk
0:03:00.9]} 7. Qc2 {[%clk 0:02:58.6]} 7... c6 {[%clk 0:03:00.5]} 8. Qxc4 {[%clk
0:02:54.1]} 8... b5 {[%clk 0:03:00.6]} 9. Qc2 {[%clk 0:02:52.7]} 9... Bb7 {[%clk
0:03:00.9]} 10. Rd1 {[%clk 0:02:45.1]} 10... Nbd7 {[%clk 0:03:00.1]} 11. Ne5
{[%clk 0:02:44.3]} 11... Nxe5 {[%clk 0:02:28.4]} 12. dxe5 {[%clk 0:02:45.2]}
12... Nd7 {[%clk 0:02:28.8]} 13. Nc3 {[%clk 0:02:43.5]} 13... Qc8 {[%clk
0:02:27.6]} 14. Bf4 {[%clk 0:02:34.6]} 14... g5 {[%clk 0:02:19.4]} 15. Be3
{[%clk 0:02:25.1]} 15... Nxe5 {[%clk 0:02:19.3]} 16. Ne4 {[%clk 0:02:19.2]}
16... h6 {[%clk 0:02:10.8]} 17. Bc5 {[%clk 0:02:07.5]} 17... Qc7 {[%clk
0:02:01.9]} 18. Bxe7 {[%clk 0:01:56.8]} 18... Qxe7 {[%clk 0:02:02]} 19. Qc5
{[%clk 0:01:54.5]} 19... Qxc5 {[%clk 0:01:53.6]} 20. Nxc5 {[%clk 0:01:55.4]}
20... Rab8 {[%clk 0:01:53.6]} 21. b3 {[%clk 0:01:52.6]} 21... Rfe8 {[%clk
0:01:43.8]} 22. Rd6 {[%clk 0:01:42.4]} 22... Ba8 {[%clk 0:01:42.1]} 23. Rad1
{[%clk 0:01:41.2]} 23... Kg7 {[%clk 0:01:37.3]} 24. e3 {[%clk 0:01:34.9]} 24...
h5 {[%clk 0:01:35.1]} 25. h3 {[%clk 0:01:32.6]} 25... g4 {[%clk 0:01:34.8]} 26.
h4 {[%clk 0:01:29.3]} 26... a5 {[%clk 0:01:23.1]} 27. Nd7 {[%clk 0:01:16.8]}
27... Nxd7 {[%clk 0:01:20.3]} 28. Rxd7 {[%clk 0:01:17.7]} 28... c5 {[%clk
0:01:09.3]} 29. Bxa8 {[%clk 0:01:17.3]} 29... Rxa8 {[%clk 0:01:10.2]} 30. Rb7
{[%clk 0:01:13.1]} 30... Reb8 {[%clk 0:01:09.7]} 31. Rc7 {[%clk 0:01:12.4]}
31... Rc8 {[%clk 0:01:03.7]} 32. Rb7 {[%clk 0:01:12.6]} 32... Rab8 {[%clk
0:01:03]} 33. Ra7 {[%clk 0:01:12.4]} 33... c4 {[%clk 0:00:35.3]} 34. bxc4 {[%clk
0:01:12.3]} 34... bxc4 {[%clk 0:00:36.2]} 35. Rdd7 {[%clk 0:01:12.3]} 35... c3
{[%clk 0:00:33.1]} 36. Rxf7+ {[%clk 0:01:12.2]} 36... Kg6 {[%clk 0:00:33.6]} 37.
Rfc7 {[%clk 0:00:29.8]} 37... c2 {[%clk 0:00:33.6]} 38. Rg7+ {[%clk 0:00:25.7]}
38... Kf6 {[%clk 0:00:33.2]} 39. Rgf7+ {[%clk 0:00:25.7]} 39... Ke5 {[%clk
0:00:31.9]} 40. Ra6 {[%clk 0:00:25.7]} 40... c1=Q+ {[%clk 0:00:30.8]} 0-1

[Event "*** Titled Tuesday Blitz"]
[Site "Chess.com"]
[Date "2020.11.10"]
[Round "8"]
[White "DenLaz"]
[Black "TigrVShlyape"]
[Result "1-0"]
[WhiteElo "2771"]
[BlackElo "2852"]
[TimeControl "180+1"]
[EndTime "11:33:06 PST"]
[Termination "DenLaz won by resignation"]

1. d4 {[%clk 0:03:00.6]} 1... d5 {[%clk 0:02:53.2]} 2. c4 {[%clk 0:03:00.1]}
2... c6 {[%clk 0:02:53.5]} 3. Nf3 {[%clk 0:03:00.4]} 3... Nf6 {[%clk 0:02:53.6]}
4. Qc2 {[%clk 0:03:00.4]} 4... g6 {[%clk 0:02:52.6]} 5. e3 {[%clk 0:02:59.5]}
5... Bg7 {[%clk 0:02:50.1]} 6. Bd3 {[%clk 0:02:59.7]} 6... O-O {[%clk
0:02:49.4]} 7. O-O {[%clk 0:02:59]} 7... Bg4 {[%clk 0:02:45.9]} 8. Nbd2 {[%clk
0:02:57.5]} 8... e6 {[%clk 0:02:39.2]} 9. b3 {[%clk 0:02:53.9]} 9... Bf5 {[%clk
0:02:36.5]} 10. Bb2 {[%clk 0:02:43.5]} 10... Bxd3 {[%clk 0:02:35]} 11. Qxd3
{[%clk 0:02:44.4]} 11... Nbd7 {[%clk 0:02:35.2]} 12. Rfd1 {[%clk 0:02:37.5]}
12... Re8 {[%clk 0:02:34.4]} 13. a4 {[%clk 0:02:30.3]} 13... a5 {[%clk
0:02:31.4]} 14. Qc2 {[%clk 0:02:16.6]} 14... Qb6 {[%clk 0:02:29.8]} 15. Ne1
{[%clk 0:02:09.4]} 15... Qa7 {[%clk 0:02:28.1]} 16. Nd3 {[%clk 0:02:08.4]} 16...
Red8 {[%clk 0:02:26.6]} 17. Ba3 {[%clk 0:02:04.5]} 17... Qb8 {[%clk 0:02:23]}
18. b4 {[%clk 0:01:57.8]} 18... axb4 {[%clk 0:02:21.3]} 19. Bxb4 {[%clk
0:01:58.7]} 19... Qc7 {[%clk 0:02:04.2]} 20. a5 {[%clk 0:01:45.6]} 20... Bf8
{[%clk 0:01:55.5]} 21. Qb2 {[%clk 0:01:39.5]} 21... Bxb4 {[%clk 0:01:53.2]} 22.
Qxb4 {[%clk 0:01:40.4]} 22... Ra7 {[%clk 0:01:51.8]} 23. Nb3 {[%clk 0:01:24.5]}
23... Rda8 {[%clk 0:01:48.9]} 24. Rac1 {[%clk 0:01:23.6]} 24... Ne4 {[%clk
0:01:43.1]} 25. f3 {[%clk 0:01:17.8]} 25... Nd6 {[%clk 0:01:41.2]} 26. Nb2
{[%clk 0:01:13.1]} 26... Qb8 {[%clk 0:01:24.8]} 27. Re1 {[%clk 0:01:04.4]} 27...
Ra6 {[%clk 0:01:19.9]} 28. e4 {[%clk 0:00:57.2]} 28... b6 {[%clk 0:01:12]} 29.
cxd5 {[%clk 0:00:36.7]} 29... cxd5 {[%clk 0:01:00]} 30. exd5 {[%clk 0:00:28.1]}
30... exd5 {[%clk 0:00:47.9]} 31. Nd3 {[%clk 0:00:19.8]} 31... bxa5 {[%clk
0:00:46.9]} 32. Qxb8+ {[%clk 0:00:20.7]} 32... Rxb8 {[%clk 0:00:45.4]} 33. Nbc5
{[%clk 0:00:21]} 33... Nxc5 {[%clk 0:00:43.6]} 34. dxc5 {[%clk 0:00:21.5]} 34...
Nc4 {[%clk 0:00:37.9]} 35. Nf4 {[%clk 0:00:21.7]} 35... Rc6 {[%clk 0:00:36.6]}
36. Nxd5 {[%clk 0:00:16.9]} 36... Rxc5 {[%clk 0:00:36.7]} 37. Nf6+ {[%clk
0:00:17.3]} 37... Kg7 {[%clk 0:00:35.4]} 38. Nd7 {[%clk 0:00:18.2]} 1-0

[Event "*** Titled Tuesday Blitz"]
[Site "Chess.com"]
[Date "2020.11.10"]
[Round "8"]
[White "Luklei18"]
[Black "ErikBlomqvist"]
[Result "1-0"]
[WhiteElo "2346"]
[BlackElo "2447"]
[TimeControl "180+1"]
[EndTime "11:33:07 PST"]
[Termination "Luklei18 won by checkmate"]

1. c4 {[%clk 0:03:00.9]} 1... e5 {[%clk 0:02:54.6]} 2. Nc3 {[%clk 0:03:00.5]}
2... Nf6 {[%clk 0:02:54.2]} 3. Nf3 {[%clk 0:03:00.7]} 3... Nc6 {[%clk
0:02:53.9]} 4. e3 {[%clk 0:03:00.5]} 4... Bb4 {[%clk 0:02:54.4]} 5. Qc2 {[%clk
0:03:00.6]} 5... d6 {[%clk 0:02:54.3]} 6. Nd5 {[%clk 0:02:57.4]} 6... Ba5 {[%clk
0:02:54]} 7. a3 {[%clk 0:02:55.2]} 7... Nxd5 {[%clk 0:02:53.6]} 8. cxd5 {[%clk
0:02:55.6]} 8... Ne7 {[%clk 0:02:54.1]} 9. Bc4 {[%clk 0:02:47.8]} 9... O-O
{[%clk 0:02:48.2]} 10. b4 {[%clk 0:02:44]} 10... Bb6 {[%clk 0:02:47.3]} 11. Bb2
{[%clk 0:02:44.7]} 11... Bg4 {[%clk 0:02:44.2]} 12. h3 {[%clk 0:02:42]} 12...
Bh5 {[%clk 0:02:40.5]} 13. g4 {[%clk 0:02:33.9]} 13... Bg6 {[%clk 0:02:40.2]}
14. e4 {[%clk 0:02:34.6]} 14... c6 {[%clk 0:02:34.5]} 15. Nh4 {[%clk 0:02:25.1]}
15... cxd5 {[%clk 0:02:27.9]} 16. Nxg6 {[%clk 0:02:17.1]} 16... dxc4 {[%clk
0:02:23]} 17. Nxf8 {[%clk 0:02:07.8]} 17... Rc8 {[%clk 0:02:21]} 18. Nxh7 {[%clk
0:01:52.1]} 18... Ng6 {[%clk 0:02:20]} 19. f4 {[%clk 0:01:53]} 19... Nxf4 {[%clk
0:02:18.3]} 20. O-O-O {[%clk 0:01:48.4]} 20... Nd3+ {[%clk 0:02:03.4]} 21. Kb1
{[%clk 0:01:48.4]} 21... Nf2 {[%clk 0:01:57.9]} 22. Rdf1 {[%clk 0:01:39]} 22...
Nxh1 {[%clk 0:01:56.7]} 23. Nf6+ {[%clk 0:01:13.3]} 23... gxf6 {[%clk
0:01:47.4]} 24. Rxh1 {[%clk 0:01:13.4]} 24... Kg7 {[%clk 0:01:45.6]} 25. Qc3
{[%clk 0:00:59.5]} 25... d5 {[%clk 0:01:23.6]} 26. g5 {[%clk 0:00:48.9]} 26...
d4 {[%clk 0:00:54.2]} 27. Qg3 {[%clk 0:00:46.5]} 27... fxg5 {[%clk 0:00:34.1]}
28. h4 {[%clk 0:00:23.1]} 28... c3 {[%clk 0:00:03.6]} 29. hxg5 {[%clk
0:00:21.6]} 29... cxb2 {[%clk 0:00:03]} 30. Qxe5+ {[%clk 0:00:21.9]} 30... Kg6
{[%clk 0:00:02.5]} 31. Rh6# {[%clk 0:00:21.2]} 1-0

[Event "*** Titled Tuesday Blitz"]
[Site "Chess.com"]
[Date "2020.11.10"]
[Round "8"]
[White "RD4ever"]
[Black "olksuna"]
[Result "1-0"]
[WhiteElo "2825"]
[BlackElo "2638"]
[TimeControl "180+1"]
[EndTime "11:33:08 PST"]
[Termination "RD4ever won by resignation"]

1. e4 {[%clk 0:03:00.9]} 1... Nf6 {[%clk 0:02:59.8]} 2. e5 {[%clk 0:02:59.9]}
2... Nd5 {[%clk 0:03:00.1]} 3. d4 {[%clk 0:03:00.5]} 3... d6 {[%clk 0:03:00.4]}
4. c4 {[%clk 0:03:01]} 4... Nb6 {[%clk 0:03:00]} 5. exd6 {[%clk 0:03:01.5]} 5...
cxd6 {[%clk 0:02:58.2]} 6. Nc3 {[%clk 0:03:01.5]} 6... g6 {[%clk 0:02:58.3]} 7.
Be3 {[%clk 0:03:02.1]} 7... Bg7 {[%clk 0:02:58.3]} 8. Rc1 {[%clk 0:03:02.9]}
8... O-O {[%clk 0:02:58.1]} 9. b3 {[%clk 0:03:03.5]} 9... Bf5 {[%clk 0:02:58]}
10. d5 {[%clk 0:02:58.7]} 10... e5 {[%clk 0:02:32.7]} 11. dxe6 {[%clk 0:02:42]}
11... Bxe6 {[%clk 0:02:24.7]} 12. Nf3 {[%clk 0:02:40.9]} 12... d5 {[%clk
0:02:25]} 13. c5 {[%clk 0:02:40.5]} 13... N6d7 {[%clk 0:02:01.7]} 14. Be2 {[%clk
0:01:11.8]} 14... Qa5 {[%clk 0:01:52.2]} 15. Nd4 {[%clk 0:01:11.8]} 15... Nxc5
{[%clk 0:01:40]} 16. O-O {[%clk 0:01:11.3]} 16... Nbd7 {[%clk 0:01:32.3]} 17.
Nxe6 {[%clk 0:01:03.3]} 17... Nxe6 {[%clk 0:00:56]} 18. Nxd5 {[%clk 0:01:02.6]}
18... Rfd8 {[%clk 0:00:52.9]} 19. b4 {[%clk 0:00:41.2]} 19... Qxa2 {[%clk
0:00:45.4]} 20. Bc4 {[%clk 0:00:41.1]} 20... Qa3 {[%clk 0:00:34.9]} 21. Ne7+
{[%clk 0:00:38.7]} 21... Kf8 {[%clk 0:00:28.4]} 22. Bxe6 {[%clk 0:00:38.5]}
22... fxe6 {[%clk 0:00:27.8]} 23. Qd6 {[%clk 0:00:31.4]} 23... Qa6 {[%clk
0:00:11.7]} 24. Nc6+ {[%clk 0:00:26.5]} 24... Kg8 {[%clk 0:00:09.2]} 25. Qxe6+
{[%clk 0:00:26.1]} 25... Kh8 {[%clk 0:00:09.7]} 26. Nxd8 {[%clk 0:00:26.2]}
26... Rxd8 {[%clk 0:00:09]} 27. Qxa6 {[%clk 0:00:26]} 27... bxa6 {[%clk
0:00:09.9]} 28. Rfd1 {[%clk 0:00:26.7]} 28... Be5 {[%clk 0:00:05.9]} 29. Bg5
{[%clk 0:00:22.7]} 1-0

[Event "*** Titled Tuesday Blitz"]
[Site "Chess.com"]
[Date "2020.11.10"]
[Round "8"]
[White "mikheeva86"]
[Black "Make_it_shine060"]
[Result "0-1"]
[WhiteElo "1992"]
[BlackElo "2133"]
[TimeControl "180+1"]
[EndTime "11:33:08 PST"]
[Termination "Make_it_shine060 won on time"]

1. e4 {[%clk 0:02:56.2]} 1... c5 {[%clk 0:02:59.5]} 2. Nc3 {[%clk 0:02:55.2]}
2... Nc6 {[%clk 0:02:58]} 3. g3 {[%clk 0:02:55.3]} 3... g6 {[%clk 0:02:57.4]} 4.
Bg2 {[%clk 0:02:55.4]} 4... Bg7 {[%clk 0:02:57.6]} 5. d3 {[%clk 0:02:55.5]} 5...
Nf6 {[%clk 0:02:54.6]} 6. Be3 {[%clk 0:02:54.9]} 6... d6 {[%clk 0:02:53.7]} 7.
h3 {[%clk 0:02:53.6]} 7... O-O {[%clk 0:02:47.1]} 8. Qd2 {[%clk 0:02:52]} 8...
Rb8 {[%clk 0:02:45.7]} 9. Bh6 {[%clk 0:02:52.2]} 9... Bxh6 {[%clk 0:02:44.7]}
10. Qxh6 {[%clk 0:02:50.8]} 10... Nd4 {[%clk 0:02:44.5]} 11. Qd2 {[%clk
0:02:46.1]} 11... b5 {[%clk 0:02:43.6]} 12. Nd1 {[%clk 0:02:41.7]} 12... b4
{[%clk 0:02:38.4]} 13. c3 {[%clk 0:02:37.6]} 13... bxc3 {[%clk 0:02:36.3]} 14.
bxc3 {[%clk 0:02:38]} 14... Nc6 {[%clk 0:02:33.1]} 15. f4 {[%clk 0:02:24.3]}
15... a5 {[%clk 0:02:25.4]} 16. e5 {[%clk 0:02:13.8]} 16... dxe5 {[%clk
0:02:11.1]} 17. Bxc6 {[%clk 0:02:12.8]} 17... Bb7 {[%clk 0:02:00.8]} 18. Bxb7
{[%clk 0:02:11]} 18... Rxb7 {[%clk 0:02:00.4]} 19. fxe5 {[%clk 0:01:52.8]} 19...
Qd5 {[%clk 0:01:59.2]} 20. Nf2 {[%clk 0:01:23.1]} 20... Qxe5+ {[%clk 0:01:47.8]}
21. Ne2 {[%clk 0:01:22.5]} 21... Rfb8 {[%clk 0:01:40]} 22. d4 {[%clk 0:00:41.8]}
22... Qe6 {[%clk 0:00:45.7]} 23. Nd1 {[%clk 0:00:19.3]} 23... Ne4 {[%clk
0:00:38]} 24. Qe3 {[%clk 0:00:18.7]} 24... Rb1 {[%clk 0:00:36.9]} 25. Rxb1
{[%clk 0:00:17.1]} 25... Rxb1 {[%clk 0:00:35.9]} 26. dxc5 {[%clk 0:00:09.5]}
26... Qd5 {[%clk 0:00:32.3]} 27. O-O {[%clk 0:00:06.8]} 27... Rxd1 {[%clk
0:00:29.9]} 28. Rxd1 {[%clk 0:00:02.9]} 28... Qxd1+ {[%clk 0:00:29.4]} 29. Kg2
{[%clk 0:00:02.8]} 29... Nxc5 {[%clk 0:00:25.7]} 0-1

[Event "*** Titled Tuesday Blitz"]
[Site "Chess.com"]
[Date "2020.11.10"]
[Round "8"]
[White "BAS8892"]
[Black "Yashasd1995"]
[Result "1-0"]
[WhiteElo "2738"]
[BlackElo "2565"]
[TimeControl "180+1"]
[EndTime "11:33:09 PST"]
[Termination "BAS8892 won by resignation"]

1. d4 {[%clk 0:03:00.9]} 1... Nf6 {[%clk 0:02:59.1]} 2. c4 {[%clk 0:03:00.5]}
2... e6 {[%clk 0:02:58.8]} 3. Nf3 {[%clk 0:02:59.9]} 3... b6 {[%clk 0:02:58.7]}
4. a3 {[%clk 0:02:58]} 4... Bb7 {[%clk 0:02:57.1]} 5. Nc3 {[%clk 0:02:57.8]}
5... d5 {[%clk 0:02:57.6]} 6. cxd5 {[%clk 0:02:57.7]} 6... exd5 {[%clk
0:02:58.5]} 7. Bf4 {[%clk 0:02:56.9]} 7... a6 {[%clk 0:02:58.3]} 8. e3 {[%clk
0:02:57]} 8... Be7 {[%clk 0:02:47]} 9. Be2 {[%clk 0:02:56]} 9... O-O {[%clk
0:02:46.1]} 10. O-O {[%clk 0:02:56.5]} 10... c5 {[%clk 0:02:45.2]} 11. dxc5
{[%clk 0:02:56.1]} 11... bxc5 {[%clk 0:02:45]} 12. Rc1 {[%clk 0:02:55]} 12...
Nbd7 {[%clk 0:02:34.8]} 13. h3 {[%clk 0:02:52.3]} 13... Rc8 {[%clk 0:02:29.6]}
14. Qa4 {[%clk 0:02:48.7]} 14... Qb6 {[%clk 0:02:20.8]} 15. Qc2 {[%clk
0:02:33.1]} 15... Rfd8 {[%clk 0:02:13.9]} 16. Rfd1 {[%clk 0:02:32.4]} 16... d4
{[%clk 0:02:04.9]} 17. Na4 {[%clk 0:02:18.8]} 17... Qa5 {[%clk 0:01:50.2]} 18.
Nd2 {[%clk 0:02:18]} 18... Bc6 {[%clk 0:01:42.5]} 19. b3 {[%clk 0:02:06.3]}
19... Bxa4 {[%clk 0:01:09.5]} 20. bxa4 {[%clk 0:02:02.7]} 20... Nb6 {[%clk
0:01:08.6]} 21. Nc4 {[%clk 0:01:59.7]} 21... Nxc4 {[%clk 0:01:08.4]} 22. Bxc4
{[%clk 0:01:59.7]} 22... Nd5 {[%clk 0:01:07.4]} 23. Qf5 {[%clk 0:01:50.8]} 23...
Nxf4 {[%clk 0:00:47.9]} 24. Qxf7+ {[%clk 0:01:49.3]} 24... Kh8 {[%clk
0:00:48.2]} 25. Qxe7 {[%clk 0:01:47.4]} 25... Ng6 {[%clk 0:00:37]} 26. Qe6
{[%clk 0:01:42.6]} 26... Re8 {[%clk 0:00:36.6]} 27. Qxa6 {[%clk 0:01:40.3]}
27... Qc7 {[%clk 0:00:27.2]} 28. exd4 {[%clk 0:01:26.2]} 28... cxd4 {[%clk
0:00:26.7]} 29. Bb5 {[%clk 0:01:08.5]} 29... Qxc1 {[%clk 0:00:26]} 30. Rxc1
{[%clk 0:01:08.6]} 30... Rxc1+ {[%clk 0:00:26.7]} 31. Kh2 {[%clk 0:01:08.8]}
31... Rf8 {[%clk 0:00:27.4]} 32. f3 {[%clk 0:01:00.5]} 32... Rc3 {[%clk
0:00:17.3]} 33. Qd6 {[%clk 0:00:57.4]} 33... Rc2 {[%clk 0:00:08.9]} 34. Bd3
{[%clk 0:00:54.4]} 34... Rcc8 {[%clk 0:00:07]} 35. Qxd4 {[%clk 0:00:51.3]} 35...
Nf4 {[%clk 0:00:05.7]} 36. Be4 {[%clk 0:00:49.9]} 36... Rcd8 {[%clk 0:00:04.6]}
37. Qe3 {[%clk 0:00:46.4]} 37... Rb8 {[%clk 0:00:02.8]} 38. Qf2 {[%clk
0:00:42.1]} 38... Rb2 {[%clk 0:00:03]} 39. Qxb2 {[%clk 0:00:41.3]} 1-0

[Event "*** Titled Tuesday Blitz"]
[Site "Chess.com"]
[Date "2020.11.10"]
[Round "8"]
[White "Zq1"]
[Black "Andreikka"]
[Result "0-1"]
[WhiteElo "2588"]
[BlackElo "2952"]
[TimeControl "180+1"]
[EndTime "11:33:12 PST"]
[Termination "Andreikka won by resignation"]

1. d4 {[%clk 0:03:00.9]} 1... Nf6 {[%clk 0:02:57.2]} 2. c4 {[%clk 0:03:00.9]}
2... e6 {[%clk 0:02:57.5]} 3. Nc3 {[%clk 0:03:00.7]} 3... Bb4 {[%clk 0:02:56.7]}
4. e3 {[%clk 0:03:00.5]} 4... O-O {[%clk 0:02:51]} 5. Bd3 {[%clk 0:02:59.8]}
5... b6 {[%clk 0:02:49.2]} 6. Ne2 {[%clk 0:02:58.5]} 6... Bb7 {[%clk 0:02:48.9]}
7. O-O {[%clk 0:02:58.4]} 7... c5 {[%clk 0:02:47.4]} 8. d5 {[%clk 0:02:56.7]}
8... exd5 {[%clk 0:02:40.7]} 9. cxd5 {[%clk 0:02:56.4]} 9... d6 {[%clk 0:02:40]}
10. e4 {[%clk 0:02:54.1]} 10... a6 {[%clk 0:02:36.5]} 11. a4 {[%clk 0:02:50.3]}
11... Nbd7 {[%clk 0:02:35]} 12. f3 {[%clk 0:02:47.3]} 12... Re8 {[%clk
0:02:31.1]} 13. Ng3 {[%clk 0:02:46.1]} 13... Ne5 {[%clk 0:02:30.9]} 14. Bc2
{[%clk 0:02:45.5]} 14... c4 {[%clk 0:02:31]} 15. Be3 {[%clk 0:02:40.9]} 15...
Bc5 {[%clk 0:02:31.9]} 16. Bxc5 {[%clk 0:02:40.4]} 16... bxc5 {[%clk 0:02:31.9]}
17. f4 {[%clk 0:02:28.1]} 17... Ng6 {[%clk 0:02:30.8]} 18. Qf3 {[%clk
0:02:22.2]} 18... Rb8 {[%clk 0:02:19.8]} 19. Rab1 {[%clk 0:02:16.6]} 19... Bc8
{[%clk 0:02:17.2]} 20. Nf5 {[%clk 0:02:10.2]} 20... h5 {[%clk 0:01:04.5]} 21. g3
{[%clk 0:02:06.2]} 21... Bxf5 {[%clk 0:01:02.1]} 22. exf5 {[%clk 0:02:05.7]}
22... Nf8 {[%clk 0:01:02.7]} 23. h3 {[%clk 0:02:05.3]} 23... Qe7 {[%clk
0:01:01.9]} 24. Kf2 {[%clk 0:02:00.8]} 24... N8d7 {[%clk 0:00:55.7]} 25. g4
{[%clk 0:02:00.1]} 25... hxg4 {[%clk 0:00:56.3]} 26. hxg4 {[%clk 0:01:59.7]}
26... Qe3+ {[%clk 0:00:56.1]} 27. Kg3 {[%clk 0:01:48.4]} 27... Qd4 {[%clk
0:00:54.8]} 28. Rfd1 {[%clk 0:01:24.8]} 28... Re3 {[%clk 0:00:49.6]} 29. Rxd4
{[%clk 0:01:14.3]} 29... Rxf3+ {[%clk 0:00:50.5]} 30. Kxf3 {[%clk 0:01:13]}
30... cxd4 {[%clk 0:00:51.4]} 31. Ne4 {[%clk 0:00:46.7]} 31... d3 {[%clk
0:00:48.1]} 32. Bxd3 {[%clk 0:00:37.6]} 32... cxd3 {[%clk 0:00:45.1]} 33. Nxd6
{[%clk 0:00:36.6]} 33... Nxd5 {[%clk 0:00:45.6]} 34. Rd1 {[%clk 0:00:31.6]}
34... Nc5 {[%clk 0:00:44.7]} 35. Ne4 {[%clk 0:00:28.3]} 35... Nxe4 {[%clk
0:00:43.3]} 36. Kxe4 {[%clk 0:00:27.9]} 36... Nb4 {[%clk 0:00:44.2]} 37. g5
{[%clk 0:00:24.4]} 37... Kf8 {[%clk 0:00:42.9]} 38. Kd4 {[%clk 0:00:17.1]} 38...
Rc8 {[%clk 0:00:41.9]} 39. f6 {[%clk 0:00:16]} 39... gxf6 {[%clk 0:00:40.9]} 40.
gxf6 {[%clk 0:00:16.5]} 40... Ke8 {[%clk 0:00:40.1]} 41. Re1+ {[%clk 0:00:07.2]}
41... Kd7 {[%clk 0:00:40.2]} 42. Re7+ {[%clk 0:00:07.1]} 42... Kd6 {[%clk
0:00:40.5]} 43. Ke3 {[%clk 0:00:07.2]} 43... Nd5+ {[%clk 0:00:40.3]} 0-1

[Event "*** Titled Tuesday Blitz"]
[Site "Chess.com"]
[Date "2020.11.10"]
[Round "8"]
[White "karwowskikacper"]
[Black "sm_sharon"]
[Result "1-0"]
[WhiteElo "2431"]
[BlackElo "2151"]
[TimeControl "180+1"]
[EndTime "11:33:13 PST"]
[Termination "karwowskikacper won by resignation"]

1. d4 {[%clk 0:02:48.7]} 1... g6 {[%clk 0:02:59]} 2. g3 {[%clk 0:02:43]} 2...
Bg7 {[%clk 0:02:59.3]} 3. Bg2 {[%clk 0:02:43.9]} 3... Nf6 {[%clk 0:02:59.6]} 4.
Nf3 {[%clk 0:02:33.9]} 4... O-O {[%clk 0:02:59.9]} 5. O-O {[%clk 0:02:34.8]}
5... c6 {[%clk 0:02:57.2]} 6. c4 {[%clk 0:02:33.4]} 6... d6 {[%clk 0:02:57.4]}
7. Nc3 {[%clk 0:02:34.3]} 7... Qa5 {[%clk 0:02:57.2]} 8. Qd3 {[%clk 0:02:28.4]}
8... Be6 {[%clk 0:02:44.2]} 9. b3 {[%clk 0:02:25.1]} 9... h6 {[%clk 0:02:35.1]}
10. Bb2 {[%clk 0:02:24]} 10... Nbd7 {[%clk 0:02:33.3]} 11. e4 {[%clk 0:02:23.2]}
11... d5 {[%clk 0:02:31.1]} 12. e5 {[%clk 0:02:15.2]} 12... Ne8 {[%clk
0:02:20.9]} 13. cxd5 {[%clk 0:02:08.7]} 13... Bxd5 {[%clk 0:02:19.1]} 14. Rfe1
{[%clk 0:02:04.5]} 14... Nc7 {[%clk 0:02:18.1]} 15. Nh4 {[%clk 0:01:58.2]} 15...
Bxg2 {[%clk 0:02:17.1]} 16. Nxg2 {[%clk 0:01:59.1]} 16... e6 {[%clk 0:02:15.7]}
17. Ne4 {[%clk 0:01:58.8]} 17... Rad8 {[%clk 0:02:05.3]} 18. a4 {[%clk
0:01:52.5]} 18... Nxe5 {[%clk 0:01:59.1]} 19. Qe2 {[%clk 0:01:49.8]} 19... Nd7
{[%clk 0:01:51.8]} 20. Ba3 {[%clk 0:01:50.1]} 20... Bxd4 {[%clk 0:01:41.5]} 21.
Rad1 {[%clk 0:01:49.9]} 21... c5 {[%clk 0:01:39.1]} 22. Nd6 {[%clk 0:01:42.9]}
22... Nf6 {[%clk 0:01:30.6]} 23. Nxb7 {[%clk 0:01:39.1]} 23... Qb6 {[%clk
0:01:30.3]} 24. Nxd8 {[%clk 0:01:37.8]} 24... Rxd8 {[%clk 0:01:30.6]} 25. Bb2
{[%clk 0:01:36.4]} 25... Ncd5 {[%clk 0:01:27.5]} 26. Bxd4 {[%clk 0:01:29]} 26...
cxd4 {[%clk 0:01:28.4]} 27. Qc4 {[%clk 0:01:28.5]} 27... e5 {[%clk 0:01:15.9]}
28. Rxe5 {[%clk 0:01:26.6]} 28... Nc3 {[%clk 0:01:12.4]} 29. Rd3 {[%clk
0:01:26.5]} 29... Ng4 {[%clk 0:01:05.8]} 30. Re1 {[%clk 0:01:05.1]} 30... Qf6
{[%clk 0:01:00.3]} 31. f4 {[%clk 0:00:30.5]} 31... Rd6 {[%clk 0:00:26.1]} 32. h3
{[%clk 0:00:29.9]} 32... Ne3 {[%clk 0:00:23]} 33. Nxe3 {[%clk 0:00:27.8]} 33...
dxe3 {[%clk 0:00:22.7]} 34. Rxd6 {[%clk 0:00:28.1]} 34... Qxd6 {[%clk 0:00:20]}
35. Qxc3 {[%clk 0:00:28.3]} 35... e2 {[%clk 0:00:18.5]} 36. Qe3 {[%clk
0:00:28.3]} 36... Qd3 {[%clk 0:00:13.8]} 37. Qxd3 {[%clk 0:00:25]} 1-0